bitfinex/quotes_ETHUSD_20250414
["timestamp","ask_amount","ask_price","bid_price","bid_amount"]
[1744646214767,6.17,1629.9,1629.5,1.658]
[1744646214965,6.17,1629.9,1629.7,6.13599]
[1744646215168,6.17,1629.9,1629.6,6.13627]
[1744646215331,6.17,1629.9,1629.8,6.13572]
[1744646215678,6.17,1629.9,1629.7,12.27193]
[1744646215835,6.17,1629.9,1629.6,13.665768]
[1744646216031,6.17,1629.9,1629.6,7.529428]
[1744646216235,6.17,1629.9,1629.8,6.13572]
[1744646216455,6.17,1629.9,1629.7,6.8887728]
[1744646216655,6.17,1629.9,1629.7,13.0247428]
[1744646216856,6.17,1629.9,1629.7,6.8887728]
[1744646217475,6.17,1629.9,1629.8,6.13572]
[1744646217680,6.17,1629.9,1629.8,8.05176728]
[1744646218378,6.17,1629.9,1629.8,8.11311572]
[1744646218884,6.17,1629.9,1629.8,8.05176728]
[1744646219292,6.17,1629.9,1629.8,8.11311582]
[1744646219592,6.17,1629.9,1629.8,8.05176728]
[1744646220289,6.17,1629.9,1629.8,8.11311577]
[1744646220444,9.13355,1630.4,1629.8,8.11311577]
[1744646220445,6.17,1630.2,1629.9,1.586]
[1744646220646,6.17,1630.2,1630.1,6.13459]
[1744646220956,6.17,1630.2,1630.1,8.312645]
[1744646221151,6.17,1630.2,1630.1,2.178055]
[1744646221352,6.17,1630.2,1630.1,6.19592919]
[1744646221779,6.17,1630.6,1630.5,6.13308]
[1744646222085,12.30165,1630.9,1630.5,0.06132312]
[1744646222391,6.17,1630.8,1630.5,6.13308]
[1744646222780,6.17,1630.8,1630.4,12.26676]
[1744646222981,6.17,1630.8,1630.4,7.360006]
[1744646223210,6.17,1630.8,1630.5,6.19440312]
[1744646223500,6.17,1630.8,1630.4,6.13333]
[1744646223655,6.17,1630.8,1630.5,6.19437308]
[1744646223990,6.17,1630.8,1630.4,6.1333]
[1744646224190,6.17,1630.8,1630.5,0.06132313]
[1744646224760,6.17,1630.8,1630.5,6.19437313]
[1744646224961,6.17,1630.8,1630.6,6.13244]
[1744646225356,6.17,1630.8,1630.4,7.8131254]
[1744646225686,6.17,1630.8,1630.2,4.5555]
[1744646225687,12.30212,1630.8,1630.3,6.13378]
[1744646225991,12.30212,1630.8,1630.4,0.0613268]
[1744646226493,18.43432,1630.8,1630.4,0.0613268]
[1744646226652,6.17,1630.8,1630.4,0.06132616]
[1744646226990,6.17,1630.8,1630.5,6.13306]
[1744646227187,12.30211,1630.8,1630.3,6.59058524]
[1744646227377,6.13248,1630.7,1630.2,10.68965]
[1744646227573,6.13248,1630.7,1630.2,16.82373]
[1744646227777,6.13248,1630.7,1630.2,16.82367]
[1744646227957,6.13248,1630.7,1630.2,10.68958]
[1744646228157,6.13248,1630.7,1630.2,10.68957]
[1744646228158,6.17,1630.6,1630.2,10.68957]
[1744646228357,0.55,1630.5,1629.9,47.827]
[1744646228573,12.26726,1630.4,1629.9,53.96222]
[1744646228770,6.17,1630.3,1629.7,16.3700028]
[1744646229088,6.13395,1630.3,1629.8,6.19671885]
[1744646229395,12.26798,1630.3,1629.8,6.19671885]
[1744646229690,0.55,1630.3,1629.8,1.32416976]
[1744646229869,7.69159,1630.1,1629.7,10.2339428]
[1744646230073,6.13513,1630.0,1629.7,9.481]
[1744646230265,1.5569,1630.1,1629.8,6.19704451]
[1744646230466,6.17,1630.2,1629.8,6.19693451]
[1744646230787,6.17,1630.2,1629.8,12.27118]
[1744646230990,8.2928,1630.1,1629.7,6.13607]
[1744646231189,1.6081,1630.1,1629.8,6.13546]
[1744646231390,1.6081,1630.1,1629.6,6.13642]
[1744646231590,7.74282,1630.1,1629.6,6.13642]
[1744646231792,13.87759,1630.1,1629.6,6.13636]
[1744646232092,12.27047,1630.0,1629.5,6.13678]
[1744646232305,1.6081,1630.1,1629.5,1.83946971]
[1744646232509,1.6081,1630.1,1629.8,6.13538]
[1744646232722,1.6081,1630.1,1629.8,12.27087]
[1744646232899,1.6081,1630.1,1629.8,6.13572]
[1744646233069,1.6081,1630.1,1629.7,6.13609]
[1744646233508,6.13516,1630.0,1629.5,6.59058171]
[1744646233664,6.13516,1630.0,1629.5,6.95402817]
[1744646233870,6.17,1629.9,1629.6,0.06135571]
[1744646234069,6.17,1629.9,1629.6,6.19761571]
[1744646235108,6.17,1629.9,1629.6,0.06135571]
[1744646235310,6.17,1629.9,1629.6,6.19775571]
[1744646235471,6.17,1629.9,1629.8,6.13572]
[1744646235671,6.17,1630.3,1630.1,6.13423]
[1744646235901,6.17,1630.3,1630.2,6.19554682]
[1744646236122,6.17,1630.6,1630.0,6.13466]
[1744646236408,6.17,1630.6,1630.2,6.13409]
[1744646236564,12.30277,1630.6,1630.2,6.13409]
[1744646236769,6.13315,1630.5,1629.8,15.56120196]
[1744646237016,6.17,1630.4,1630.0,6.13484]
[1744646237201,1.6147,1630.3,1629.9,6.19653373]
[1744646237713,1.6147,1630.3,1629.9,12.33176373]
[1744646237886,1.6147,1630.3,1629.9,12.27042]
[1744646238084,1.6147,1630.3,1630.0,6.13496]
[1744646238614,6.17,1630.4,1630.0,7.361975]
[1744646238910,6.17,1630.4,1630.2,6.1341]
[1744646239472,6.17,1630.4,1630.2,6.13418]
[1744646239865,6.17,1630.4,1630.1,6.13448]
[1744646240111,6.17,1630.4,1630.1,12.26896]
[1744646240274,6.17,1630.4,1630.2,0.06133462]
[1744646240476,6.17,1630.4,1630.1,12.26896]
[1744646240675,6.17,1630.4,1630.2,6.19554463]
[1744646241007,6.17,1630.5,1630.3,12.26768]
[1744646241235,6.17,1630.5,1630.4,11.77699783]
[1744646241371,6.4899343,1631.0,1630.9,6.13158]
[1744646241568,6.17,1631.0,1630.9,6.13158]
[1744646241804,6.17,1631.0,1630.7,6.13232]
[1744646242006,7.75853,1630.9,1630.4,3.0]
[1744646242207,12.30211,1630.8,1630.4,9.19466661]
[1744646242375,12.30211,1630.8,1630.3,21.74952]
[1744646242581,18.43437,1630.8,1630.4,6.13342]
[1744646242791,6.13245,1630.7,1630.3,21.74943]
[1744646243076,12.30211,1630.8,1630.4,6.13335]
[1744646243275,7.77726,1630.6,1630.2,6.13408]
[1744646243470,7.77726,1630.6,1630.2,6.19553536]
[1744646243689,7.77726,1630.6,1630.2,12.32973536]
[1744646244019,1.6443,1630.6,1630.3,6.13373]
[1744646244373,7.77704,1630.6,1630.2,6.19553416]
[1744646244584,13.91002,1630.6,1630.2,6.19536416]
[1744646244790,1.6443,1630.6,1630.2,0.06133419]
[1744646244999,1.6443,1630.6,1630.4,6.13333]
[1744646245884,1.6443,1630.6,1630.3,6.13381]
[1744646246303,1.6443,1630.6,1630.3,12.26748]
[1744646246472,1.6443,1630.6,1630.4,6.13344]
[1744646246871,1.6443,1630.6,1630.3,6.13367]
[1744646247697,6.13343,1630.5,1630.1,53.95543]
[1744646247906,6.17,1630.4,1630.1,53.9554]
[1744646248117,6.17,1630.4,1630.1,60.08985]
[1744646248327,6.17,1630.4,1630.2,6.13421]
[1744646248766,6.17,1630.4,1630.3,6.13384]
[1744646249099,6.17,1630.4,1630.3,7.360645]
[1744646249313,6.17,1630.7,1630.6,6.13271]
[1744646251635,6.17,1630.7,1630.5,0.06132161]
[1744646251838,6.17,1630.7,1630.5,6.13305]
[1744646252036,6.17,1630.8,1630.6,6.13257]
[1744646252441,6.17,1630.8,1630.7,6.13233]
[1744646252639,6.17,1630.8,1630.5,6.13301]
[1744646252939,6.13207,1630.8,1630.4,15.6143]
[1744646253146,6.13207,1630.8,1630.4,21.74762]
[1744646253356,12.30167,1630.9,1630.5,6.13305]
[1744646253642,12.30167,1630.9,1630.5,6.13298]
[1744646253942,6.17,1630.9,1630.5,2.174744]
[1744646254146,6.17,1630.9,1630.6,6.13267]
[1744646254920,6.17,1630.9,1630.6,6.13258]
[1744646255546,6.132,1630.8,1630.4,21.74768]
[1744646255751,8.23267,1630.8,1630.4,15.61436]
[1744646256257,6.13236,1630.7,1630.4,15.61436]
[1744646256554,6.13281,1630.6,1630.4,9.481]
[1744646256751,6.13281,1630.6,1630.2,12.26826]
[1744646256957,6.68249,1630.7,1630.2,6.13411]
[1744646257121,6.68239,1630.7,1630.3,6.13381]
[1744646257318,6.13271,1630.6,1630.1,53.95558]
[1744646257520,7.752,1630.4,1630.1,47.821]
[1744646258018,13.88561,1630.4,1630.1,47.821]
[1744646258348,13.92008,1630.9,1630.5,6.13281]
[1744646258643,6.13206,1630.8,1630.4,6.13345]
[1744646258852,12.26418,1630.8,1630.4,6.13345]
[1744646259057,14.269438,1630.8,1630.4,6.13345]
[1744646259560,6.13238,1630.7,1630.4,6.13345]
[1744646259780,7.7884,1630.9,1630.6,6.13257]
[1744646259953,13.92008,1630.9,1630.5,12.26606]
[1744646260256,13.92004,1630.9,1630.5,6.13285]
[1744646260453,6.17,1630.9,1630.8,6.13195]
[1744646260847,1.5652,1631.2,1630.9,6.13132]
[1744646261048,20.04894,1631.5,1631.1,6.13083]
[1744646261253,7.7899,1631.5,1631.0,0.45520429]
[1744646261429,7.7899,1631.5,1631.1,0.06130095]
[1744646261759,7.7899,1631.5,1630.9,3.0]
[1744646261760,6.12981,1631.4,1631.0,6.1312]
[1744646262051,6.13027,1631.3,1630.9,6.13155]
[1744646262265,6.13027,1631.3,1631.0,6.13116]
[1744646262432,6.67971,1631.4,1631.1,6.13072]
[1744646262629,7.7899,1631.5,1631.2,6.13034]
[1744646262824,7.7899,1631.5,1631.2,6.13032]
[1744646263064,4.26717551,1631.7,1631.6,6.12895]
[1744646263215,3.94737114,1631.7,1631.6,6.12895]
[1744646264220,6.17,1632.0,1631.9,6.12782]
[1744646264764,6.17,1632.1,1632.0,6.12745]
[1744646264918,6.17,1632.2,1631.8,6.12818]
[1744646265366,12.29682,1632.2,1631.8,6.12818]
[1744646265561,6.12716,1632.1,1631.6,7.68269]
[1744646265730,6.17,1632.0,1631.7,6.1285]
[1744646265938,6.17,1632.0,1631.7,6.12837]
[1744646266174,12.29748,1632.0,1631.7,6.12853]
[1744646266461,12.2975,1632.0,1631.6,9.396059]
[1744646266629,12.2975,1632.0,1631.5,15.5773]
[1744646266630,0.55,1631.9,1631.5,15.5773]
[1744646266831,6.12835,1631.8,1631.5,9.448]
[1744646267267,6.1286,1631.7,1631.5,9.448]
[1744646267422,6.17,1631.6,1631.5,9.448]
[1744646267628,6.17,1631.7,1631.4,6.12954]
[1744646267823,6.17,1631.7,1631.4,6.12951]
[1744646268565,0.55,1631.6,1631.2,56.113282]
[1744646268869,6.67914,1631.6,1631.2,6.743282]
[1744646269066,6.12937,1631.5,1631.1,6.13076]
[1744646269363,6.17,1631.4,1631.2,6.13039]
[1744646269565,6.17,1631.4,1631.1,12.26136]
[1744646269725,6.17,1631.3,1631.0,6.13083]
[1744646269925,6.17,1631.3,1630.9,3.06130145]
[1744646270188,0.55,1631.2,1630.9,0.06130145]
[1744646270346,12.26221,1631.1,1630.6,6.58061502]
[1744646270549,6.17,1631.0,1630.6,6.13243]
[1744646270850,6.68158,1630.9,1630.5,2.40941215]
[1744646271046,12.30211,1630.8,1630.5,1.78999449]
[1744646271248,1.5808,1630.7,1630.5,1.78999449]
[1744646271452,13.88327,1630.7,1630.5,1.78999449]
[1744646271649,13.88327,1630.7,1630.3,17.21001]
[1744646271853,13.88317,1630.7,1630.3,15.57751]
[1744646272081,20.0157,1630.7,1630.3,15.57751]
[1744646272439,6.13274,1630.6,1630.3,9.444]
[1744646272674,12.26567,1630.6,1630.3,9.444]
[1744646273081,6.68328,1630.5,1630.0,6.13474]
[1744646273449,7.75225,1630.3,1629.9,9.445]
[1744646273691,1.6183,1630.3,1629.9,9.445]
[1744646273980,7.75222,1630.3,1629.9,9.445]
[1744646274293,7.75222,1630.3,1629.9,15.58018]
[1744646274586,13.88628,1630.3,1629.9,15.58018]
[1744646275086,13.8863,1630.3,1629.9,15.58018]
[1744646275288,1.6183,1630.3,1629.9,27.8602996]
[1744646275589,2.1025,1630.5,1629.9,15.5899596]
[1744646275793,6.13422,1630.2,1629.9,9.445]
[1744646275942,12.26878,1630.2,1629.9,9.445]
[1744646276377,6.1346,1630.1,1629.9,9.445]
[1744646276586,7.8008,1630.1,1629.7,13.86934]
[1744646276768,0.55,1630.2,1630.0,6.13495]
[1744646277088,10.80015,1630.3,1629.9,12.27042]
[1744646277387,10.80015,1630.3,1629.8,6.13559]
[1744646277543,10.80015,1630.3,1629.9,6.13522]
[1744646277991,16.93422,1630.3,1629.9,6.13522]
[1744646278188,10.80015,1630.3,1629.9,6.13519]
[1744646278593,16.93416,1630.3,1629.9,6.13519]
[1744646278793,6.68437,1630.2,1629.8,6.13567]
[1744646278998,12.81887,1630.2,1629.8,6.13567]
[1744646279191,12.81887,1630.2,1629.7,7.73339]
[1744646279192,6.1346,1630.1,1629.7,7.73339]
[1744646279494,12.81876,1630.2,1629.8,6.13569]
[1744646279712,12.2696,1630.1,1629.7,7.73324]
[1744646279876,12.2696,1630.1,1629.7,6.13594]
[1744646280251,2.4678376,1630.2,1629.5,15.58376]
[1744646280490,6.13588,1629.8,1629.4,6.13712]
[1744646280697,7.72212,1629.9,1629.5,6.13684]
[1744646280698,6.17,1629.7,1629.5,6.13684]
[1744646280868,6.17,1629.7,1629.6,6.13647]
[1744646281061,6.17,1629.7,1629.4,12.72743289]
[1744646281302,6.17,1629.7,1629.4,6.59028289]
[1744646281497,6.17,1629.7,1629.4,6.6516482]
[1744646281801,1.5433,1629.5,1629.1,9.499]
[1744646281955,6.13777,1629.3,1629.1,0.05]
[1744646282157,12.85798,1629.2,1629.1,0.05]
[1744646282355,0.55,1629.1,1628.6,6.14021]
[1744646282556,6.13916,1628.9,1628.5,7.71004]
[1744646282756,1.6563,1628.8,1628.5,6.14054]
[1744646282954,13.91582,1628.8,1628.3,13.82676]
[1744646283200,12.28016,1628.7,1628.3,6.14122]
[1744646283364,6.14027,1628.6,1628.2,15.55868]
[1744646283564,12.28162,1628.5,1628.1,6.19197]
[1744646283785,8.28128,1628.3,1628.1,0.05]
[1744646283987,6.14175,1628.2,1628.1,0.05]
[1744646284299,7.73123,1628.3,1628.1,0.05]
[1744646284607,6.14175,1628.2,1628.1,0.05]
[1744646285060,1.5897,1628.3,1628.1,0.05]
[1744646285272,6.69175,1628.2,1628.1,0.05]
[1744646285575,4.378145,1628.2,1628.1,0.05]
[1744646286076,3.0,1628.2,1628.1,0.05]
[1744646286484,3.55,1628.2,1628.1,0.05]
[1744646286684,0.55,1628.2,1628.1,0.05]
[1744646286907,1.5897,1628.3,1628.1,0.05]
[1744646287108,6.69175,1628.2,1628.1,0.05]
[1744646287426,2.065,1627.7,1627.1,1.6488]
[1744646287715,11.95430668,1627.7,1627.1,0.05]
[1744646287919,11.95430668,1627.7,1627.3,6.14485]
[1744646287920,2.065,1627.7,1627.3,6.14485]
[1744646288070,0.55,1627.5,1627.1,6.19574]
[1744646288274,6.6944,1627.5,1627.1,0.05]
[1744646288515,7.978277,1627.5,1627.1,0.05]
[1744646288824,6.12,1627.4,1627.1,0.05]
[1744646289175,6.12,1627.4,1627.3,6.14514]
[1744646289488,6.12,1627.4,1627.2,6.14536]
[1744646289685,6.12,1627.4,1627.1,13.8811]
[1744646289889,6.12,1627.4,1627.2,6.14545]
[1744646290087,6.12,1627.4,1627.2,6.20689739]
[1744646290292,6.12,1627.4,1627.2,6.14545]
[1744646290517,6.12,1627.4,1627.2,6.20689739]
[1744646290680,6.12,1627.4,1627.1,0.05]
[1744646290880,6.14517,1627.3,1627.1,0.05]
[1744646291108,6.12,1627.2,1627.1,0.05]
[1744646292678,12.81552,1627.2,1627.1,0.05]
[1744646293091,31.08030822,1627.2,1627.1,0.05]
[1744646293389,23.74842,1627.2,1627.1,0.05]
[1744646293712,26.737784,1627.2,1627.1,0.05]
[1744646295512,29.737784,1627.2,1627.1,0.05]
[1744646295685,34.06967222,1627.2,1627.1,0.05]
[1744646296483,29.737784,1627.2,1627.1,0.05]
[1744646296910,26.187784,1627.2,1627.1,0.05]
[1744646297107,23.19842,1627.2,1627.1,0.05]
[1744646297309,23.74842,1627.2,1627.1,0.05]
[1744646297730,26.74842,1627.2,1627.1,0.05]
[1744646300733,26.19842,1627.2,1627.1,0.05]
[1744646300890,26.74842,1627.2,1627.1,0.05]
[1744646301095,30.037784,1627.2,1627.1,0.05]
[1744646301632,6.14591,1627.1,1626.6,6.14758]
[1744646301796,6.12,1627.0,1626.6,12.29529]
[1744646301996,6.12,1627.0,1626.6,6.1475]
[1744646302296,6.12,1627.0,1626.7,7.80177]
[1744646302597,6.12,1627.0,1626.7,1.6544]
[1744646303210,6.14667,1626.9,1626.5,1.5173]
[1744646303538,12.26667,1626.9,1626.5,1.5173]
[1744646303908,6.12,1626.9,1626.5,7.66544]
[1744646304312,6.12,1626.9,1626.5,7.72687419]
[1744646304619,6.12,1626.9,1626.5,7.6654]
[1744646304819,12.26665,1626.9,1626.5,7.6654]
[1744646305027,6.14715,1626.8,1626.5,1.5173]
[1744646305221,20.254792,1626.9,1626.4,12.29684]
[1744646305426,6.12,1626.8,1626.4,6.20986422]
[1744646305639,12.26711,1626.8,1626.4,6.20986422]
[1744646306138,6.14806,1626.6,1626.3,0.3917801]
[1744646306338,12.26806,1626.6,1626.3,0.3917801]
[1744646307205,12.26797,1626.6,1626.3,0.3917801]
[1744646307403,18.41596,1626.6,1626.3,0.3917801]
[1744646307599,6.12,1626.6,1626.3,0.45326642]
[1744646307903,6.12,1626.6,1626.5,6.14817]
[1744646308103,6.12,1626.6,1626.4,6.14825]
[1744646308316,6.12,1626.6,1626.3,6.5405801]
[1744646308523,6.12,1626.6,1626.4,6.14831]
[1744646308733,6.12,1626.6,1626.3,6.5406901]
[1744646308960,6.12,1626.6,1626.4,6.20968953]
[1744646309110,6.12,1626.6,1626.5,7.78377]
[1744646309316,6.12,1626.6,1626.5,7.84524466]
[1744646309511,6.12,1626.6,1626.5,7.78377]
[1744646310032,6.12,1626.6,1626.5,7.84524466]
[1744646310235,6.12,1626.6,1626.5,9.18311547]
[1744646310949,6.12,1626.6,1626.5,12.24459014]
[1744646311465,6.12,1626.6,1626.5,10.78377]
[1744646312250,6.12,1626.6,1626.5,10.84524394]
[1744646312748,18.41223,1627.1,1626.7,6.14738]
[1744646312914,12.26601,1627.1,1626.7,6.14738]
[1744646313115,12.26601,1627.1,1626.7,12.29463]
[1744646313524,12.26601,1627.1,1626.7,6.14725]
[1744646314152,18.41211,1627.1,1626.7,6.14725]
[1744646314446,6.1463,1627.0,1626.5,7.78345]
[1744646314644,6.14687,1626.9,1626.5,7.78345]
[1744646314843,6.69637,1627.0,1626.5,7.78345]
[1744646315047,12.8428,1627.0,1626.6,6.14768]
[1744646315459,6.12,1627.1,1626.8,6.14696]
[1744646315633,12.26607,1627.1,1626.7,6.14734]
[1744646315833,6.14782,1626.6,1626.3,0.3917801]
[1744646316064,6.14795,1626.6,1626.3,0.3917801]
[1744646316260,6.6975,1626.7,1626.3,0.3917801]
[1744646316494,13.83512,1626.8,1626.3,6.5405701]
[1744646316627,7.6608,1627.0,1626.7,6.14735]
[1744646316830,6.12,1627.0,1626.8,6.14673]
[1744646317132,6.12,1627.0,1626.8,7.77543]
[1744646317323,6.12,1627.0,1626.8,13.92231]
[1744646317523,6.12,1627.0,1626.9,6.14665]
[1744646317925,6.12,1627.0,1626.8,13.92231]
[1744646318122,12.26647,1627.0,1626.8,1.6287]
[1744646318326,12.26647,1627.0,1626.7,6.14738]
[1744646318327,6.12,1627.0,1626.7,6.14738]
[1744646318729,6.12,1627.0,1626.7,6.14729]
[1744646319163,12.26641,1627.0,1626.6,7.72977]
[1744646319459,12.26641,1627.0,1626.6,13.87742]
[1744646319660,6.12,1627.0,1626.7,6.14715]
[1744646319963,6.12,1627.0,1626.9,6.14665]
[1744646321164,6.12,1627.0,1626.7,6.14733]
[1744646321366,6.12,1627.0,1626.7,6.14725]
[1744646321841,6.12,1627.0,1626.9,6.14665]
[1744646322043,6.14565,1627.2,1626.8,6.14689]
[1744646322430,12.29137,1627.2,1626.8,6.14689]
[1744646322650,6.1461,1627.1,1626.7,6.14734]
[1744646322865,6.1461,1627.1,1626.7,6.14728]
[1744646323187,6.1461,1627.1,1626.7,12.29456]
[1744646323496,12.84132,1627.2,1626.7,13.982246]
[1744646323659,6.69554,1627.2,1626.8,6.14695]
[1744646323857,6.69554,1627.2,1626.8,6.14693]
[1744646324080,12.29055,1627.3,1626.7,1.74913275]
[1744646324250,2.1909,1627.4,1627.0,6.14606]
[1744646324457,6.14411,1627.6,1627.2,6.14519]
[1744646324703,7.67805,1627.9,1627.4,6.14453]
[1744646324857,7.67801,1627.9,1627.2,1.5983]
[1744646325057,1.535,1627.9,1627.2,1.5983]
[1744646325257,4.535,1627.9,1627.2,7.74375]
[1744646325565,6.1433,1627.8,1627.4,6.14464]
[1744646325773,6.14433,1627.6,1627.2,8.518075]
[1744646325972,12.28866,1627.6,1627.2,7.7437]
[1744646326290,6.69326,1627.8,1627.0,7.69986]
[1744646326509,12.28909,1627.5,1627.0,7.69976]
[1744646326695,12.28909,1627.5,1627.1,6.14588]
[1744646326996,6.14416,1627.6,1627.2,12.29089]
[1744646327398,3.0,1627.5,1627.2,12.29089]
[1744646327699,6.14416,1627.6,1627.2,12.29089]
[1744646328191,12.28846,1627.6,1627.2,6.14539]
[1744646328491,6.1451,1627.4,1627.0,7.69986]
[1744646328654,12.29005,1627.4,1627.0,7.69986]
[1744646328856,1.387525,1627.4,1627.0,7.69985]
[1744646329057,6.14531,1627.3,1627.0,1.5536]
[1744646329256,12.28975,1627.4,1627.0,7.69987]
[1744646329455,7.72966,1627.5,1627.1,0.06145591]
[1744646329677,1.5852,1627.5,1627.1,6.14559]
[1744646329868,6.14439,1627.5,1627.1,12.29134]
[1744646330076,6.14409,1627.6,1627.1,6.14559]
[1744646330288,8.27899,1627.7,1627.2,6.14541]
[1744646330493,14.42279,1627.7,1627.3,6.14513]
[1744646330688,12.8376,1627.7,1627.3,6.14501]
[1744646330868,6.14365,1627.7,1627.4,1.6592]
[1744646331063,12.28689,1627.8,1627.4,7.80386]
[1744646331278,6.14333,1627.8,1627.4,7.80386]
[1744646331481,6.14333,1627.8,1627.2,13.95006]
[1744646331482,6.14391,1627.7,1627.2,13.95006]
[1744646331685,6.14407,1627.6,1627.2,7.80459]
[1744646331897,6.14421,1627.6,1627.2,7.80466]
[1744646332098,6.14421,1627.6,1627.2,1.6592]
[1744646332307,6.14442,1627.5,1627.2,1.6592]
[1744646332688,6.14442,1627.5,1627.2,7.80466]
[1744646333005,3.0,1627.6,1627.3,6.14512]
[1744646333188,9.14414,1627.6,1627.2,7.8046]
[1744646333607,9.14414,1627.6,1627.2,13.95002]
[1744646333782,3.0,1627.6,1627.2,1.6592]
[1744646333981,3.0,1627.6,1627.3,6.14497]
[1744646334311,3.0,1627.6,1627.4,6.14468]
[1744646335075,3.0,1627.6,1627.3,6.14497]
[1744646335411,6.14451,1627.5,1627.2,1.6592]
[1744646335574,0.3205629,1628.0,1627.9,6.14288]
[1744646335779,1.5324,1628.1,1627.7,6.14363]
[1744646335974,5.44847114,1628.4,1627.7,6.2050631]
[1744646336214,5.44847114,1628.4,1627.9,6.14278]
[1744646336419,5.44847114,1628.4,1627.8,7.80137]
[1744646336589,3.94737114,1628.4,1628.2,6.14174]
[1744646336794,3.94737114,1628.4,1628.3,6.14137]
[1744646336973,3.94737114,1628.4,1628.2,7.79831]
[1744646337173,6.14181,1628.2,1627.8,15.54418]
[1744646337490,10.48315825,1628.4,1628.0,6.14216]
[1744646337814,6.14186,1628.2,1627.9,6.14282]
[1744646338309,6.14186,1628.2,1627.9,6.14277]
[1744646338497,9.14137,1628.3,1627.9,6.14277]
[1744646338704,9.14137,1628.3,1628.0,6.14244]
[1744646339100,6.14265,1628.0,1627.7,6.59988954]
[1744646339305,7.67527,1628.1,1627.7,12.74335954]
[1744646339615,6.14252,1628.0,1627.7,6.14347]
[1744646339817,7.67523,1628.1,1627.7,6.14357]
[1744646340019,6.09611771,1628.3,1627.9,6.1426]
[1744646340326,6.09611771,1628.3,1627.8,6.14314]
[1744646340327,6.14234,1628.1,1627.8,6.14314]
[1744646340521,6.14265,1628.0,1627.7,6.14338]
[1744646340725,4.5284,1628.3,1627.7,6.14363]
[1744646341021,6.1419,1628.2,1627.9,6.14288]
[1744646341424,12.28388,1628.2,1627.8,6.14319]
[1744646341623,12.28388,1628.2,1627.6,6.14388]
[1744646341624,6.14313,1627.9,1627.6,6.14388]
[1744646341790,6.14251,1628.0,1627.7,6.14362]
[1744646342218,1.228388,1628.1,1627.5,7.76798]
[1744646342526,6.14311,1627.9,1627.5,7.76793]
[1744646342693,6.14311,1627.9,1627.6,6.14395]
[1744646343024,6.14311,1627.9,1627.5,7.76793]
[1744646343382,6.14326,1627.8,1627.5,13.91217]
[1744646343587,6.14307,1627.9,1627.6,6.14389]
[1744646343801,6.14307,1627.9,1627.6,12.28778]
[1744646344299,12.2862,1627.9,1627.6,6.14389]
[1744646344496,6.14307,1627.9,1627.6,6.14389]
[1744646344685,6.14307,1627.9,1627.6,12.28776]
[1744646344887,6.14307,1627.9,1627.6,6.14387]
[1744646345621,6.14354,1627.8,1627.5,7.76807]
[1744646345834,2.267657,1627.9,1627.5,1.6237]
[1744646345979,12.024278,1628.1,1627.5,1.68513975]
[1744646346300,10.79575,1628.1,1627.7,6.1434]
[1744646346622,7.79563,1628.1,1627.6,6.14392]
[1744646346832,13.93807,1628.1,1627.7,12.28692]
[1744646346998,14.76469426,1628.1,1627.7,12.28692]
[1744646347201,6.14258,1628.0,1627.7,6.14343]
[1744646347400,7.14258,1628.0,1627.7,6.14343]
[1744646347801,1.0,1628.0,1627.7,12.28693]
[1744646348127,7.1426,1628.0,1627.7,6.14343]
[1744646348443,7.1426,1628.0,1627.8,6.14313]
[1744646348444,1.0,1628.0,1627.8,6.14313]
[1744646348727,1.6063,1628.6,1628.0,6.14237]
[1744646348930,6.14137,1628.3,1628.0,6.14237]
[1744646349136,6.14224,1628.1,1627.7,7.76221]
[1744646349426,6.14288,1627.9,1627.6,6.14399]
[1744646349627,12.28594,1627.9,1627.6,6.14399]
[1744646349830,6.14288,1627.9,1627.6,6.14399]
[1744646349989,12.28534,1628.0,1627.7,6.1435]
[1744646350184,1.283534,1628.0,1627.7,6.14359]
[1744646350525,6.14314,1627.9,1627.6,6.14395]
[1744646350728,6.14291,1627.9,1627.6,12.28781]
[1744646350883,6.14298,1627.9,1627.6,6.1439]
[1744646351089,6.14298,1627.9,1627.6,12.28777]
[1744646351289,6.14298,1627.9,1627.4,10.9941]
[1744646351290,1.228553,1627.9,1627.4,10.9941]
[1744646351504,6.14294,1627.9,1627.5,6.14433]
[1744646351704,12.28612,1627.9,1627.6,6.14399]
[1744646352033,6.14336,1627.8,1627.5,6.14425]
[1744646352231,6.14274,1628.0,1627.6,6.14373]
[1744646352402,1.0,1627.9,1627.6,6.14373]
[1744646352801,1.0,1627.9,1627.7,6.14361]
[1744646353038,1.5122,1628.2,1627.8,1.69073341]
[1744646353326,6.1411,1628.4,1628.1,6.14189]
[1744646353929,7.69312,1628.5,1628.0,6.1424]
[1744646353930,1.5524,1628.5,1628.0,6.1424]
[1744646354092,12.28332,1628.3,1627.9,12.28545]
[1744646354287,6.14302,1627.9,1627.6,12.28773]
[1744646354495,6.1425,1628.0,1627.5,7.7752]
[1744646354793,6.14339,1627.8,1627.5,7.77512]
[1744646355330,6.14366,1627.7,1627.5,1.6309]
[1744646355529,6.69326,1627.8,1627.3,7.70748]
[1744646355730,6.1438,1627.7,1627.3,7.70746]